[Event "Swedish Chess Championship 2021: Junior-SM"]
[Site "Scandic Helsingborg Nord, Florettgatan 41, Helsingborg, Sweden"]
[Date "2021.07.10"]
[Round "8.4"]
[White "Carlsson, Ludvig"]
[Black "Olsson, William"]
[Result "1-0"]
[TimeControl "90 minutes for 40 moves + 30 minutes for the rest of the game + 30 seconds per move from move one."]
[WhiteTitle "CM"]
[WhiteFideId "1727010"]
[BlackFideId "1741721"]
[WhiteElo "2258"]
[BlackElo "2221"]
1. e4 {[%clk 01:30:54]} {[%emt 00:00:05]} c5 {[%clk 01:30:57]} {[%emt
00:00:05]} 2. Nf3 {[%clk 01:31:12]} {[%emt 00:00:10]} d6 {[%clk 01:31:19]}
{[%emt 00:00:08]} 3. d4 {[%clk 01:31:35]} {[%emt 00:00:07]} cxd4 {[%clk
01:31:42]} {[%emt 00:00:08]} 4. Nxd4 {[%clk 01:32:00]} {[%emt 00:00:04]} Nf6
{[%clk 01:32:06]} {[%emt 00:00:06]} 5. Nc3 {[%clk 01:32:24]} {[%emt 00:00:06]}
g6 {[%clk 01:32:33]} {[%emt 00:00:04]} 6. Be3 {[%clk 01:32:18]} {[%emt
00:00:06]} Bg7 {[%clk 01:32:59]} {[%emt 00:00:04]} 7. f3 {[%clk 01:33:10]}
{[%emt 00:00:07]} O-O {[%clk 01:33:24]} {[%emt 00:00:05]} 8. Qd2 {[%clk
01:33:37]} {[%emt 00:00:03]} Nc6 {[%clk 01:33:49]} {[%emt 00:00:05]} 9. O-O-O
{[%clk 01:33:56]} {[%emt 00:00:10]} d5 {[%clk 01:34:15]} {[%emt 00:00:05]} 10.
Kb1 {[%clk 01:34:14]} {[%emt 00:00:12]} Nxd4 {[%clk 01:32:23]} {[%emt
00:02:23]} 11. e5 {[%clk 01:34:37]} {[%emt 00:00:06]} Nf5 {[%clk 01:20:48]}
{[%emt 00:12:05]} 12. exf6 {[%clk 01:34:58]} {[%emt 00:00:09]} exf6 {[%clk
01:21:13]} {[%emt 00:00:05]} 13. Bc5 {[%clk 01:35:06]} {[%emt 00:00:22]} Re8
{[%clk 01:19:38]} {[%emt 00:02:06]} 14. Nxd5 {[%clk 01:35:27]} {[%emt
00:00:09]} Kh8 {[%clk 01:12:21]} {[%emt 00:07:47]} 15. g4 {[%clk 01:28:41]}
{[%emt 00:07:16]} Nh6 {[%clk 01:11:07]} {[%emt 00:01:44]} 16. h4 {[%clk
01:12:31]} {[%emt 00:16:39]} Be6 {[%clk 00:59:42]} {[%emt 00:11:56]} 17. Bb5
{[%clk 01:12:03]} {[%emt 00:00:58]} Qc8 {[%clk 00:59:51]} {[%emt 00:00:21]} 18.
Bxe8 {[%clk 01:10:37]} {[%emt 00:01:56]} Qxc5 {[%clk 01:00:11]} {[%emt
00:00:11]} 19. Ba4 {[%clk 01:10:54]} {[%emt 00:00:12]} Ng8 {[%clk 00:55:15]}
{[%emt 00:05:25]} 20. Qb4 {[%clk 01:07:20]} {[%emt 00:04:03]} Qc8 {[%clk
00:54:19]} {[%emt 00:01:28]} 21. Qc3 {[%clk 01:00:55]} {[%emt 00:06:54]} Qf8
{[%clk 00:53:46]} {[%emt 00:01:03]} 22. Qb4 {[%clk 00:59:52]} {[%emt 00:01:34]}
Qc8 {[%clk 00:51:56]} {[%emt 00:02:20]} 23. h5 {[%clk 00:59:41]} {[%emt
00:00:41]} g5 {[%clk 00:46:56]} {[%emt 00:05:30]} 24. c3 {[%clk 00:51:46]}
{[%emt 00:08:25]} f5 {[%clk 00:44:50]} {[%emt 00:02:36]} 25. gxf5 {[%clk
00:51:34]} {[%emt 00:00:42]} Bxf5+ {[%clk 00:45:08]} {[%emt 00:00:12]} 26. Bc2
{[%clk 00:52:00]} {[%emt 00:00:04]} Nh6 {[%clk 00:39:15]} {[%emt 00:06:21]} 27.
Rhg1 {[%clk 00:49:21]} {[%emt 00:03:10]} f6 {[%clk 00:37:09]} {[%emt 00:02:36]}
28. Rge1 {[%clk 00:47:26]} {[%emt 00:02:25]} a5 {[%clk 00:34:48]} {[%emt
00:02:52]} 29. Bxf5 {[%clk 00:45:48]} {[%emt 00:02:08]} Nxf5 {[%clk 00:34:47]}
{[%emt 00:00:30]} 30. Qg4 {[%clk 00:45:26]} {[%emt 00:00:52]} Rb8 {[%clk
00:33:05]} {[%emt 00:02:13]} 31. Nb6 {[%clk 00:44:44]} {[%emt 00:01:12]} Qc6
{[%clk 00:32:47]} {[%emt 00:00:48]} 32. Nd7 {[%clk 00:45:04]} {[%emt 00:00:10]}
1-0

[Event "Swedish Chess Championship 2021: Junior-SM"]
[Site "Scandic Helsingborg Nord, Florettgatan 41, Helsingborg, Sweden"]
[Date "2021.07.10"]
[Round "8.5"]
[White "Nguyen, Gabriel"]
[Black "Petersson, Baldur Teodor"]
[Result "1/2-1/2"]
[TimeControl "90 minutes for 40 moves + 30 minutes for the rest of the game + 30 seconds per move from move one."]
[BlackTitle "CM"]
[WhiteFideId "1720791"]
[BlackFideId "2309157"]
[WhiteElo "2099"]
[BlackElo "2230"]
1. d4 {[%clk 01:30:55]} {[%emt 00:00:04]} Nf6 {[%clk 01:29:16]} {[%emt
00:01:44]} 2. c4 {[%clk 01:31:19]} {[%emt 00:00:06]} g6 {[%clk 01:29:35]}
{[%emt 00:00:06]} 3. Nc3 {[%clk 01:31:21]} {[%emt 00:00:34]} Bg7 {[%clk
01:29:24]} {[%emt 00:00:36]} 4. e4 {[%clk 01:31:33]} {[%emt 00:00:22]} d6
{[%clk 01:29:48]} {[%emt 00:00:07]} 5. f3 {[%clk 01:31:37]} {[%emt 00:00:27]}
O-O {[%clk 01:29:39]} {[%emt 00:00:39]} 6. Be3 {[%clk 01:32:01]} {[%emt
00:00:06]} Nbd7 {[%clk 01:27:22]} {[%emt 00:02:47]} 7. Nge2 {[%clk 01:32:18]}
{[%emt 00:00:11]} c5 {[%clk 01:27:11]} {[%emt 00:00:42]} 8. d5 {[%clk
01:32:43]} {[%emt 00:00:05]} Ne5 {[%clk 01:21:47]} {[%emt 00:05:54]} 9. Ng3
{[%clk 01:33:05]} {[%emt 00:00:07]} h5 {[%clk 01:22:09]} {[%emt 00:00:08]} 10.
Be2 {[%clk 01:33:29]} {[%emt 00:00:06]} h4 {[%clk 01:19:15]} {[%emt 00:03:24]}
11. Nf1 {[%clk 01:33:52]} {[%emt 00:00:06]} h3 {[%clk 01:19:20]} {[%emt
00:00:26]} 12. g4 {[%clk 01:26:35]} {[%emt 00:07:46]} e6 {[%clk 00:43:46]}
{[%emt 00:36:04]} 13. g5 {[%clk 01:17:25]} {[%emt 00:09:40]} Nh7 {[%clk
00:44:01]} {[%emt 00:00:16]} 14. f4 {[%clk 01:15:32]} {[%emt 00:02:21]} exd5
{[%clk 00:44:17]} {[%emt 00:00:16]} 15. cxd5 {[%clk 01:14:45]} {[%emt
00:01:17]} Nd7 {[%clk 00:43:50]} {[%emt 00:00:57]} 16. Qd2 {[%clk 01:08:34]}
{[%emt 00:06:41]} 1/2-1/2

[Event "Swedish Chess Championship 2021: Junior-SM"]
[Site "Scandic Helsingborg Nord, Florettgatan 41, Helsingborg, Sweden"]
[Date "2021.07.10"]
[Round "8.1"]
[White "Wernberg, Hugo"]
[Black "Falkevall, Axel"]
[Result "1-0"]
[TimeControl "90 minutes for 40 moves + 30 minutes for the rest of the game + 30 seconds per move from move one."]
[WhiteTitle "CM"]
[BlackTitle "CM"]
[WhiteFideId "1737511"]
[BlackFideId "1735560"]
[WhiteElo "2208"]
[BlackElo "2209"]
1. c4 {[%clk 01:30:57]} {[%emt 00:00:02]} Nf6 {[%clk 01:30:55]} {[%emt
00:00:05]} 2. Nc3 {[%clk 01:31:19]} {[%emt 00:00:08]} e6 {[%clk 01:31:14]}
{[%emt 00:00:11]} 3. Nf3 {[%clk 01:31:39]} {[%emt 00:00:10]} d5 {[%clk
01:31:36]} {[%emt 00:00:07]} 4. e3 {[%clk 01:32:00]} {[%emt 00:00:09]} c5
{[%clk 01:31:26]} {[%emt 00:00:40]} 5. d4 {[%clk 01:32:11]} {[%emt 00:00:19]}
Nc6 {[%clk 01:31:23]} {[%emt 00:00:33]} 6. a3 {[%clk 01:32:10]} {[%emt
00:00:31]} a6 {[%clk 01:29:15]} {[%emt 00:02:38]} 7. dxc5 {[%clk 01:31:48]}
{[%emt 00:00:52]} Bxc5 {[%clk 01:29:06]} {[%emt 00:00:40]} 8. b4 {[%clk
01:30:53]} {[%emt 00:01:24]} Ba7 {[%clk 01:28:02]} {[%emt 00:01:33]} 9. Bb2
{[%clk 01:22:33]} {[%emt 00:08:50]} O-O {[%clk 01:25:30]} {[%emt 00:03:02]} 10.
Be2 {[%clk 01:16:38]} {[%emt 00:06:25]} dxc4 {[%clk 01:22:44]} {[%emt
00:03:16]} 11. Bxc4 {[%clk 01:15:58]} {[%emt 00:01:10]} Qe7 {[%clk 01:19:39]}
{[%emt 00:03:35]} 12. O-O {[%clk 01:11:27]} {[%emt 00:05:01]} Rd8 {[%clk
01:16:17]} {[%emt 00:03:52]} 13. Qc2 {[%clk 01:05:18]} {[%emt 00:06:39]} b5
{[%clk 01:09:13]} {[%emt 00:07:34]} 14. Bd3 {[%clk 01:03:01]} {[%emt 00:02:47]}
Bb7 {[%clk 01:02:06]} {[%emt 00:07:37]} 15. Ne4 {[%clk 00:56:29]} {[%emt
00:07:02]} Nd5 {[%clk 00:56:30]} {[%emt 00:06:07]} 16. Qe2 {[%clk 00:55:20]}
{[%emt 00:01:39]} Rac8 {[%clk 00:52:32]} {[%emt 00:04:28]} 17. Rac1 {[%clk
00:53:47]} {[%emt 00:02:03]} Nb8 {[%clk 00:45:52]} {[%emt 00:07:10]} 18. Rxc8
{[%clk 00:41:25]} {[%emt 00:12:51]} Rxc8 {[%clk 00:43:38]} {[%emt 00:02:44]} 19.
Be5 {[%clk 00:31:17]} {[%emt 00:10:38]} Nd7 {[%clk 00:38:39]} {[%emt 00:05:30]}
20. Bd6 {[%clk 00:26:31]} {[%emt 00:05:16]} Qd8 {[%clk 00:36:14]} {[%emt
00:02:55]} 21. Bg3 {[%clk 00:26:07]} {[%emt 00:00:55]} Nc3 {[%clk 00:29:35]}
{[%emt 00:07:09]} 22. Nxc3 {[%clk 00:26:22]} {[%emt 00:00:15]} Rxc3 {[%clk
00:29:39]} {[%emt 00:00:26]} 23. Rd1 {[%clk 00:24:28]} {[%emt 00:02:23]} Bxf3
{[%clk 00:20:39]} {[%emt 00:09:30]} 24. gxf3 {[%clk 00:18:22]} {[%emt
00:06:37]} Qc8 {[%clk 00:17:48]} {[%emt 00:03:20]} 25. a4 {[%clk 00:18:23]}
{[%emt 00:00:29]} Nf6 {[%clk 00:14:36]} {[%emt 00:03:42]} 26. axb5 {[%clk
00:18:32]} {[%emt 00:00:20]} axb5 {[%clk 00:14:59]} {[%emt 00:00:08]} 27. Bxb5
{[%clk 00:18:25]} {[%emt 00:00:38]} Nd5 {[%clk 00:14:39]} {[%emt 00:00:50]} 28.
e4 {[%clk 00:13:43]} {[%emt 00:05:12]} Nxb4 {[%clk 00:10:33]} {[%emt 00:04:36]}
29. Qb2 {[%clk 00:11:48]} {[%emt 00:02:24]} Nc2 {[%clk 00:05:11]} {[%emt
00:05:52]} 30. Qxc3 {[%clk 00:11:35]} {[%emt 00:00:43]} Qxc3 {[%clk 00:05:32]}
{[%emt 00:00:09]} 31. Rd8# {[%clk 00:11:58]} {[%emt 00:00:07]} 1-0

[Event "Swedish Chess Championship 2021: Junior-SM"]
[Site "Scandic Helsingborg Nord, Florettgatan 41, Helsingborg, Sweden"]
[Date "2021.07.10"]
[Round "8.2"]
[White "Torngren, Gustav"]
[Black "Soderstrom, Adrian"]
[Result "1/2-1/2"]
[TimeControl "90 minutes for 40 moves + 30 minutes for the rest of the game + 30 seconds per move from move one."]
[WhiteTitle "FM"]
[BlackTitle "CM"]
[WhiteFideId "1728970"]
[BlackFideId "1745786"]
[WhiteElo "2307"]
[BlackElo "2258"]
1. Nc3 {[%clk 01:30:59]} Nf6 {[%clk 01:27:22]} {[%emt 00:03:38]} 2. Nf3 {[%clk
01:30:22]} {[%emt 00:01:07]} d5 {[%clk 01:26:48]} {[%emt 00:01:04]} 3. b3
{[%clk 01:30:13]} {[%emt 00:00:39]} Nbd7 {[%clk 01:20:38]} {[%emt 00:06:40]} 4.
d4 {[%clk 01:28:53]} {[%emt 00:01:50]} e6 {[%clk 01:18:55]} {[%emt 00:02:13]} 5.
Bb2 {[%clk 01:28:57]} {[%emt 00:00:26]} c6 {[%clk 01:17:28]} {[%emt 00:01:57]}
6. Qd3 {[%clk 01:28:09]} {[%emt 00:01:18]} Qa5 {[%clk 01:13:19]} {[%emt
00:04:40]} 7. a3 {[%clk 01:28:26]} {[%emt 00:00:14]} Be7 {[%clk 01:12:14]}
{[%emt 00:01:33]} 8. b4 {[%clk 01:28:28]} {[%emt 00:00:29]} Qb6 {[%clk
01:11:36]} {[%emt 00:01:08]} 9. Na4 {[%clk 01:24:23]} {[%emt 00:04:36]} Qc7
{[%clk 01:11:02]} {[%emt 00:01:03]} 10. Ne5 {[%clk 01:15:47]} {[%emt 00:09:06]}
Nxe5 {[%clk 00:59:22]} {[%emt 00:12:09]} 11. dxe5 {[%clk 01:15:57]} {[%emt
00:00:20]} Nd7 {[%clk 00:59:49]} {[%emt 00:00:03]} 12. Qg3 {[%clk 01:13:41]}
{[%emt 00:02:46]} g6 {[%clk 00:55:45]} {[%emt 00:04:34]} 13. e4 {[%clk
01:10:33]} {[%emt 00:03:39]} Nb6 {[%clk 00:42:30]} {[%emt 00:13:44]} 14. Nxb6
{[%clk 01:08:00]} {[%emt 00:03:04]} Qxb6 {[%clk 00:42:41]} {[%emt 00:00:18]} 15.
exd5 {[%clk 01:07:56]} {[%emt 00:00:33]} cxd5 {[%clk 00:42:06]} {[%emt
00:01:05]} 16. Rd1 {[%clk 01:06:01]} {[%emt 00:02:25]} Bd7 {[%clk 00:38:39]}
{[%emt 00:03:58]} 17. Bd4 {[%clk 00:58:15]} {[%emt 00:08:16]} Qc7 {[%clk
00:38:23]} {[%emt 00:00:46]} 18. Qb3 {[%clk 00:51:40]} {[%emt 00:07:05]} a5
{[%clk 00:33:09]} {[%emt 00:05:44]} 19. Bd3 {[%clk 00:51:05]} {[%emt 00:01:04]}
axb4 {[%clk 00:29:55]} {[%emt 00:03:44]} 20. axb4 {[%clk 00:51:15]} {[%emt
00:00:19]} O-O {[%clk 00:27:26]} {[%emt 00:03:00]} 21. O-O {[%clk 00:50:42]}
{[%emt 00:01:03]} Ra4 {[%clk 00:24:54]} {[%emt 00:03:03]} 22. c3 {[%clk
00:49:54]} {[%emt 00:01:17]} Rfa8 {[%clk 00:24:57]} {[%emt 00:00:27]} 23. Qb1
{[%clk 00:48:31]} {[%emt 00:01:52]} Ra3 {[%clk 00:23:45]} {[%emt 00:01:44]} 24.
f4 {[%clk 00:38:15]} {[%emt 00:10:45]} Ba4 {[%clk 00:23:14]} {[%emt 00:01:00]}
25. Rd2 {[%clk 00:38:10]} {[%emt 00:00:35]} Bb3 {[%clk 00:10:18]} {[%emt
00:13:27]} 26. Qe1 {[%clk 00:19:27]} {[%emt 00:19:13]} Bc4 {[%clk 00:09:37]}
{[%emt 00:01:11]} 27. Bxc4 {[%clk 00:19:32]} {[%emt 00:00:25]} Qxc4 {[%clk
00:09:28]} {[%emt 00:00:39]} 28. Qe2 {[%clk 00:19:52]} {[%emt 00:00:11]} Qxe2
{[%clk 00:09:11]} {[%emt 00:00:48]} 29. Rxe2 {[%clk 00:20:20]} {[%emt
00:00:02]} h5 {[%clk 00:08:53]} {[%emt 00:00:47]} 30. g3 {[%clk 00:19:13]}
{[%emt 00:01:38]} Kf8 {[%clk 00:08:18]} {[%emt 00:01:03]} 31. h3 {[%clk
00:15:25]} {[%emt 00:04:17]} Ke8 {[%clk 00:06:58]} {[%emt 00:01:51]} 32. g4
{[%clk 00:15:46]} {[%emt 00:00:09]} hxg4 {[%clk 00:07:19]} {[%emt 00:00:09]} 33.
hxg4 {[%emt 00:00:02]} Kd7 {[%clk 00:06:54]} {[%emt 00:00:55]} 34. f5 {[%clk
00:16:29]} {[%emt 00:00:15]} gxf5 {[%clk 00:07:15]} {[%emt 00:00:09]} 35. gxf5
{[%clk 00:16:54]} {[%emt 00:00:05]} Rg8+ {[%clk 00:06:16]} {[%emt 00:01:28]} 36.
Rg2 {[%clk 00:16:51]} {[%emt 00:00:33]} Rxg2+ {[%clk 00:05:00]} {[%emt
00:01:47]} 37. Kxg2 {[%clk 00:17:19]} {[%emt 00:00:02]} exf5 {[%clk 00:02:46]}
{[%emt 00:02:44]} 38. Rxf5 {[%clk 00:17:33]} {[%emt 00:00:14]} Ke6 {[%clk
00:03:12]} {[%emt 00:00:05]} 39. Rh5 {[%clk 00:17:15]} {[%emt 00:00:48]} Ra6
{[%clk 00:02:05]} {[%emt 00:01:37]} 1/2-1/2

[Event "Swedish Chess Championship 2021: Junior-SM"]
[Site "Scandic Helsingborg Nord, Florettgatan 41, Helsingborg, Sweden"]
[Date "2021.07.10"]
[Round "8.3"]
[White "Pantzar, Milton"]
[Black "Rasti, Arvin"]
[Result "1-0"]
[TimeControl "90 minutes for 40 moves + 30 minutes for the rest of the game + 30 seconds per move from move one."]
[WhiteTitle "IM"]
[WhiteFideId "1721003"]
[BlackFideId "1741160"]
[WhiteElo "2421"]
[BlackElo "2248"]
1. d4 {[%clk 01:30:56]} {[%emt 00:00:03]} Nf6 {[%clk 01:30:42]} {[%emt
00:00:18]} 2. c4 {[%clk 01:31:18]} {[%emt 00:00:09]} e6 {[%clk 01:30:51]}
{[%emt 00:00:21]} 3. Nf3 {[%clk 01:31:33]} {[%emt 00:00:15]} d5 {[%clk
01:31:14]} {[%emt 00:00:06]} 4. g3 {[%clk 01:31:25]} {[%emt 00:00:38]} Bb4+
{[%clk 01:31:21]} {[%emt 00:00:23]} 5. Bd2 {[%clk 01:31:38]} {[%emt 00:00:17]}
Be7 {[%clk 01:31:45]} {[%emt 00:00:06]} 6. Bg2 {[%clk 01:31:59]} {[%emt
00:00:10]} O-O {[%clk 01:31:58]} {[%emt 00:00:17]} 7. Qc2 {[%clk 01:29:56]}
{[%emt 00:02:33]} c6 {[%clk 01:32:06]} {[%emt 00:00:22]} 8. h4 {[%clk
01:29:19]} {[%emt 00:01:07]} Nbd7 {[%clk 01:20:32]} {[%emt 00:12:04]} 9. Nc3
{[%clk 01:29:14]} {[%emt 00:00:35]} b6 {[%clk 01:20:31]} {[%emt 00:00:31]} 10.
e4 {[%clk 01:21:50]} {[%emt 00:07:53]} dxe4 {[%clk 01:18:14]} {[%emt 00:02:48]}
11. Nxe4 {[%clk 01:17:24]} {[%emt 00:04:57]} Bb7 {[%clk 01:17:13]} {[%emt
00:01:31]} 12. Nfg5 {[%clk 01:11:25]} {[%emt 00:06:29]} Qc8 {[%clk 01:09:47]}
{[%emt 00:07:55]} 13. Bc3 {[%clk 01:06:07]} {[%emt 00:05:49]} Nxe4 {[%clk
01:04:25]} {[%emt 00:05:52]} 14. Bxe4 {[%clk 00:58:24]} {[%emt 00:08:13]} g6
{[%clk 01:03:09]} {[%emt 00:01:45]} 15. f4 {[%clk 00:38:42]} {[%emt 00:20:13]}
c5 {[%clk 00:54:45]} {[%emt 00:08:54]} 16. d5 {[%clk 00:37:18]} {[%emt
00:01:53]} exd5 {[%clk 00:53:18]} {[%emt 00:01:57]} 17. cxd5 {[%clk 00:36:43]}
{[%emt 00:01:04]} Nf6 {[%clk 00:41:03]} {[%emt 00:12:45]} 18. O-O-O {[%clk
00:36:41]} {[%emt 00:00:33]} Nh5 {[%clk 00:38:09]} {[%emt 00:03:24]} 19. f5
{[%clk 00:32:02]} {[%emt 00:05:08]} Bxg5+ {[%clk 00:26:35]} {[%emt 00:12:05]}
20. hxg5 {[%clk 00:32:24]} {[%emt 00:00:08]} 1-0

[Event "Swedish Chess Championship 2021: Junior-SM"]
[Site "Scandic Helsingborg Nord, Florettgatan 41, Helsingborg, Sweden"]
[Date "2021.07.08"]
[Round "6.1"]
[White "Wernberg, Hugo"]
[Black "Rasti, Arvin"]
[Result "0-1"]
[TimeControl "90 minutes for 40 moves + 30 minutes for the rest of the game + 30 seconds per move from move one."]
[WhiteTitle "CM"]
[WhiteFideId "1737511"]
[BlackFideId "1741160"]
[WhiteElo "2208"]
[BlackElo "2248"]
1. Nf3 {[%clk 01:30:56]} {[%emt 00:00:04]} Nf6 {[%clk 01:30:35]} {[%emt
00:00:25]} 2. c4 {[%clk 01:31:17]} {[%emt 00:00:09]} g6 {[%clk 01:30:58]}
{[%emt 00:00:06]} 3. Nc3 {[%clk 01:31:37]} {[%emt 00:00:10]} Bg7 {[%clk
01:31:23]} {[%emt 00:00:05]} 4. e4 {[%clk 01:32:02]} {[%emt 00:00:06]} d6
{[%clk 01:31:48]} {[%emt 00:00:05]} 5. d4 {[%clk 01:32:17]} {[%emt 00:00:15]}
O-O {[%clk 01:32:11]} {[%emt 00:00:07]} 6. h3 {[%clk 01:32:27]} {[%emt
00:00:20]} a6 {[%clk 01:30:23]} {[%emt 00:02:18]} 7. a4 {[%clk 01:29:41]}
{[%emt 00:03:16]} e5 {[%clk 01:21:02]} {[%emt 00:09:51]} 8. d5 {[%clk
01:28:49]} {[%emt 00:01:22]} a5 {[%clk 01:16:58]} {[%emt 00:04:34]} 9. Be2
{[%clk 01:23:51]} {[%emt 00:05:27]} Na6 {[%clk 01:16:56]} {[%emt 00:00:32]} 10.
Be3 {[%clk 01:22:16]} {[%emt 00:02:06]} Nc5 {[%clk 01:12:54]} {[%emt 00:04:33]}
11. Nd2 {[%clk 01:22:00]} {[%emt 00:00:46]} Ne8 {[%clk 01:12:13]} {[%emt
00:01:10]} 12. g4 {[%clk 01:19:06]} {[%emt 00:03:24]} b6 {[%clk 01:06:59]}
{[%emt 00:05:44]} 13. Nb3 {[%clk 01:10:11]} {[%emt 00:09:25]} Bd7 {[%clk
00:58:15]} {[%emt 00:09:14]} 14. Nxc5 {[%clk 01:05:33]} {[%emt 00:05:08]} dxc5
{[%clk 00:58:35]} {[%emt 00:00:10]} 15. Qd2 {[%clk 00:56:28]} {[%emt 00:09:35]}
f5 {[%clk 00:55:36]} {[%emt 00:03:29]} 16. gxf5 {[%clk 00:53:20]} {[%emt
00:03:38]} gxf5 {[%clk 00:56:05]} {[%emt 00:00:01]} 17. exf5 {[%clk 00:53:33]}
{[%emt 00:00:16]} Bxf5 {[%clk 00:56:06]} {[%emt 00:00:29]} 18. h4 {[%clk
00:39:11]} {[%emt 00:14:53]} Nd6 {[%clk 00:54:27]} {[%emt 00:02:09]} 19. O-O-O
{[%clk 00:36:36]} {[%emt 00:03:04]} Qd7 {[%clk 00:54:20]} {[%emt 00:00:37]} 20.
Rhg1 {[%clk 00:29:26]} {[%emt 00:07:40]} Kh8 {[%clk 00:52:02]} {[%emt
00:02:48]} 21. b3 {[%clk 00:24:36]} {[%emt 00:05:21]} e4 {[%clk 00:50:48]}
{[%emt 00:01:44]} 22. Rg2 {[%clk 00:17:23]} {[%emt 00:07:43]} Rg8 {[%clk
00:50:27]} {[%emt 00:00:51]} 23. Rdg1 {[%clk 00:17:15]} {[%emt 00:00:37]} Qe7
{[%clk 00:48:47]} {[%emt 00:02:11]} 24. Kb2 {[%clk 00:09:56]} {[%emt 00:07:50]}
Raf8 {[%clk 00:46:49]} {[%emt 00:02:27]} 25. h5 {[%clk 00:08:57]} {[%emt
00:01:28]} Qe5 {[%clk 00:42:21]} {[%emt 00:04:59]} 26. Rxg7 {[%clk 00:06:43]}
{[%emt 00:02:44]} Rxg7 {[%clk 00:42:40]} {[%emt 00:00:11]} 27. Rxg7 {[%clk
00:07:00]} {[%emt 00:00:12]} Kxg7 {[%clk 00:40:43]} {[%emt 00:02:27]} 28. Bh6+
{[%clk 00:07:10]} {[%emt 00:00:21]} Kf7 {[%clk 00:41:09]} {[%emt 00:00:04]} 29.
Bxf8 {[%clk 00:07:12]} {[%emt 00:00:27]} Kxf8 {[%clk 00:41:27]} {[%emt
00:00:12]} 30. Qg5 {[%clk 00:03:42]} {[%emt 00:04:00]} Qd4 {[%clk 00:39:33]}
{[%emt 00:02:24]} 31. Qf4 {[%clk 00:03:08]} {[%emt 00:01:04]} Ke7 {[%clk
00:38:54]} {[%emt 00:01:10]} 32. Qg5+ {[%clk 00:02:13]} {[%emt 00:01:25]} Qf6
{[%clk 00:37:13]} {[%emt 00:02:12]} 33. Qxf6+ {[%clk 00:01:13]} {[%emt
00:01:30]} Kxf6 {[%clk 00:37:42]} {[%emt 00:00:01]} 34. Kc1 {[%clk 00:01:06]}
{[%emt 00:00:37]} Bh3 {[%clk 00:37:03]} {[%emt 00:01:08]} 35. Kd2 {[%clk
00:00:49]} {[%emt 00:00:46]} Bg2 {[%clk 00:37:17]} {[%emt 00:00:16]} 36. Nb5
{[%clk 00:00:37]} {[%emt 00:00:43]} Nxb5 {[%clk 00:37:27]} {[%emt 00:00:21]} 37.
axb5 {[%clk 00:00:59]} {[%emt 00:00:08]} Kg5 {[%clk 00:37:48]} {[%emt
00:00:09]} 38. Ke3 {[%clk 00:00:54]} {[%emt 00:00:35]} h6 {[%clk 00:34:01]}
{[%emt 00:04:16]} 39. Bd1 {[%clk 00:00:51]} {[%emt 00:00:33]} Kf5 {[%clk
00:33:29]} {[%emt 00:01:01]} 40. Be2 {[%clk 00:00:34]} {[%emt 00:00:48]} Ke5
{[%clk 00:32:41]} {[%emt 00:01:18]} 41. Bd1 {[%clk 00:25:39]} {[%emt 00:05:25]}
Bf1 {[%clk 00:59:54]} {[%emt 00:03:18]} 42. Bc2 {[%clk 00:21:29]} {[%emt
00:04:39]} a4 {[%clk 01:00:00]} {[%emt 00:00:24]} 43. bxa4 {[%clk 00:20:52]}
{[%emt 00:01:07]} Bxc4 {[%clk 01:00:25]} {[%emt 00:00:05]} 44. Bxe4 {[%clk
00:20:38]} {[%emt 00:00:44]} Bxd5 {[%clk 01:00:10]} {[%emt 00:00:46]} 45. Bc2
{[%clk 00:17:18]} {[%emt 00:03:50]} Bf7 {[%clk 01:00:10]} {[%emt 00:00:30]} 46.
Bd1 {[%clk 00:16:36]} {[%emt 00:01:12]} c4 {[%clk 01:00:28]} {[%emt 00:00:11]}
47. Bf3 {[%clk 00:15:18]} {[%emt 00:01:48]} Be8 {[%clk 00:59:42]} {[%emt
00:01:16]} 48. Be4 {[%clk 00:12:40]} {[%emt 00:03:08]} Bxh5 {[%clk 00:59:20]}
{[%emt 00:00:53]} 49. f4+ {[%clk 00:12:58]} {[%emt 00:00:11]} Kf6 {[%clk
00:59:07]} {[%emt 00:00:43]} 50. Kd4 {[%clk 00:11:58]} {[%emt 00:01:30]} Be2
{[%clk 00:59:24]} {[%emt 00:00:13]} 51. Bd5 {[%clk 00:07:27]} {[%emt 00:05:02]}
h5 {[%clk 00:59:13]} {[%emt 00:00:41]} 52. Bxc4 {[%clk 00:07:26]} {[%emt
00:00:31]} Bxc4 {[%clk 00:59:31]} {[%emt 00:00:12]} 53. Kxc4 {[%clk 00:07:49]}
{[%emt 00:00:07]} Kf5 {[%clk 00:59:43]} {[%emt 00:00:18]} 54. Kd5 {[%clk
00:07:36]} {[%emt 00:00:42]} h4 {[%clk 01:00:08]} {[%emt 00:00:05]} 55. Kc6
{[%clk 00:07:58]} {[%emt 00:00:09]} h3 {[%clk 01:00:34]} {[%emt 00:00:04]} 56.
Kxc7 {[%clk 00:08:14]} {[%emt 00:00:14]} h2 {[%clk 01:00:59]} {[%emt 00:00:05]}
57. Kxb6 {[%clk 00:08:36]} {[%emt 00:00:08]} h1=Q {[%clk 01:01:25]} {[%emt
00:00:04]} 58. a5 {[%clk 00:07:00]} {[%emt 00:02:07]} Qa8 {[%clk 01:01:47]}
{[%emt 00:00:07]} 59. a6 {[%clk 00:06:39]} {[%emt 00:00:52]} Kxf4 {[%clk
01:02:04]} {[%emt 00:00:13]} 60. Kc7 {[%clk 00:05:30]} {[%emt 00:01:38]} Qa7+
{[%clk 01:02:29]} {[%emt 00:00:05]} 61. Kc6 {[%clk 00:05:19]} {[%emt 00:00:42]}
Ke5 {[%clk 01:02:48]} {[%emt 00:00:11]} 62. b6 {[%clk 00:05:33]} {[%emt
00:00:17]} Qxa6 {[%clk 01:03:11]} {[%emt 00:00:07]} 63. Kc7 {[%clk 00:05:44]}
{[%emt 00:00:19]} Qc4+ {[%clk 01:03:33]} {[%emt 00:00:07]} 64. Kd7 {[%clk
00:05:25]} {[%emt 00:00:49]} Kd5 {[%clk 01:03:48]} {[%emt 00:00:15]} 0-1